bitfinex-derivatives/quotes_SOLF0:USTF0_20260123
["timestamp","ask_amount","ask_price","bid_price","bid_amount"]
[1769207524136,11.27844269,127.75,127.69,16.37699814]
[1769207526726,2.00169091,127.74,127.69,16.37699814]
[1769207530933,1.99968925,127.74,127.69,16.37699814]
[1769207533836,1.99968925,127.74,127.7,9.58770359]
[1769207534233,1.99968925,127.74,127.7,16.64420359]
[1769207534735,1.99968925,127.76,127.71,16.64032151]
[1769207536237,12.00311918,127.76,127.71,9.58432151]
[1769207541043,1.99968925,127.76,127.71,9.58432151]
[1769207542544,1.99968925,127.76,127.71,16.64022151]
[1769207544634,12.00311918,127.76,127.71,16.64022151]
[1769207546349,10.00342993,127.76,127.71,16.64022151]
[1769207547746,7.0518,127.79,127.73,9.67899143]
[1769207547950,17.05522993,127.79,127.73,9.67899143]
[1769207548249,12.00311918,127.78,127.73,9.67899143]
[1769207548445,1.99968925,127.77,127.73,9.67899143]
[1769207548646,2.05372552,127.77,127.73,9.67899143]
[1769207550051,2.05372552,127.77,127.74,0.05215964]
[1769207559854,12.14346814,127.77,127.74,0.05215964]
[1769207562158,12.14346814,127.77,127.73,9.67899143]
[1769207562761,12.14346814,127.77,127.71,7.0559]
[1769207562963,10.08974262,127.74,127.69,7.0566]
[1769207563256,10.08974262,127.74,127.67,9.72142695]
[1769207563458,10.08974262,127.74,127.7,0.05970523]
[1769207563659,10.14913716,127.73,127.7,0.05970523]
[1769207564055,12.14882641,127.73,127.7,0.05970523]
[1769207566958,12.08943187,127.72,127.67,9.72142695]
[1769207567952,10.08974262,127.72,127.67,9.72142695]
[1769207569360,10.08974262,127.72,127.67,16.77952695]
[1769207569661,12.08943187,127.72,127.67,16.77952695]
[1769207570266,12.08943187,127.72,127.65,1.99968925]
[1769207570562,10.08974262,127.73,127.67,11.7211162]
[1769207570958,10.08974262,127.73,127.69,0.0501538]
[1769207572262,0.04965504,127.72,127.69,0.0501538]
[1769207576960,0.04965504,127.72,127.69,16.82828075]
[1769207577161,10.08974262,127.75,127.69,16.82828075]
[1769207578462,0.05623692,127.73,127.7,7.0561]
[1769207578667,0.05623692,127.73,127.7,9.72142695]
[1769207579461,0.05623692,127.73,127.7,9.77305972]
[1769207580062,0.05623692,127.73,127.71,7.0559]
[1769207580562,0.05623692,127.73,127.71,16.77732695]
[1769207580867,10.08974262,127.76,127.71,16.77732695]
[1769207587572,10.08974262,127.76,127.72,7.0554]
[1769207588173,10.08974262,127.76,127.73,0.04947405]
[1769207606603,10.14473979,127.76,127.73,0.04947405]
[1769207611300,12.14357168,127.76,127.72,7.0554]
[1769207611504,10.34773807,127.73,127.67,9.95057324]
[1769207613102,10.34773807,127.73,127.69,7.057]
[1769207613697,10.34773807,127.73,127.7,0.04943308]
[1769207613897,0.0539725,127.72,127.7,0.04943308]
[1769207626802,9.79328567,127.72,127.7,0.04943308]
[1769207643231,9.79328567,127.72,127.69,7.057]
[1769207649530,0.0539725,127.72,127.69,7.057]
[1769207649731,0.0539725,127.72,127.69,16.53331471]
[1769207652843,0.0539725,127.72,127.69,18.53262109]
[1769207654648,9.75232464,127.76,127.7,9.39366295]
[1769207655143,9.75232464,127.78,127.73,7.0548]
[1769207655749,9.75232464,127.78,127.74,0.05293551]
[1769207656247,9.8040216,127.77,127.74,0.05293551]
[1769207672057,9.8040216,127.77,127.73,7.0548]
[1769207681766,9.8040216,127.77,127.72,16.44906295]
[1769207686775,9.8040216,127.77,127.73,0.04992898]
[1769207700087,9.22490518,127.76,127.71,7.0559]
[1769207701187,11.22421156,127.76,127.71,7.0559]
[1769207701686,9.22490518,127.75,127.71,7.0559]
[1769207702388,0.05107983,127.74,127.71,7.0559]
[1769207709191,9.62453027,127.74,127.71,0.04970022]
[1769207711588,9.62453027,127.74,127.71,0.01519945]
[1769207712394,9.62453027,127.74,127.7,7.0565]
[1769207712395,9.62453027,127.74,127.69,7.057]
[1769207716391,9.62453027,127.74,127.7,7.0565]
[1769207717895,9.62453027,127.74,127.71,0.05978479]
[1769207740601,9.67151844,127.73,127.68,8.60136501]
[1769207740801,9.67151844,127.73,127.66,314.76529615]
[1769207741105,9.67151844,127.73,127.67,8.45536896]
[1769207741910,9.67151844,127.73,127.68,7.0576]
[1769207752216,9.67151844,127.72,127.66,312.66670349]
[1769207753808,9.72772121,127.7,127.66,8.3565936]
[1769207754008,9.72772121,127.7,127.66,7.0587]
[1769207756019,9.72772121,127.7,127.65,1.9998173]
[1769207756220,9.72772121,127.7,127.64,15.40859789]
[1769207756420,9.72772121,127.7,127.64,8.34929789]
[1769207756720,9.67151844,127.68,127.63,9.0602173]
[1769207757321,0.05995608,127.67,127.63,9.0602173]
[1769207757819,0.05995608,127.67,127.63,17.3952855]
[1769207759624,9.73147452,127.67,127.61,17.38906665]
[1769207760033,9.67151844,127.67,127.61,17.38906665]
[1769207760234,0.05017451,127.65,127.61,17.38906665]
[1769207760638,0.05017451,127.65,127.62,8.32501703]
[1769207761236,0.05017451,127.65,127.62,15.38591703]
[1769207761431,9.67151844,127.67,127.62,15.38591703]
[1769207762739,0.05429321,127.66,127.62,15.38591703]
[1769207764130,9.26263363,127.69,127.64,8.26853929]
[1769207765437,0.05058541,127.68,127.64,8.26853929]
[1769207767231,0.05058541,127.68,127.64,15.32823929]
[1769207767739,8.80495402,127.71,127.67,1.9998173]
[1769207768329,8.80495402,127.73,127.67,9.28825755]
[1769207768938,0.04964156,127.71,127.67,16.34585755]
[1769207769137,8.80495402,127.74,127.69,9.29626843]
[1769207770545,0.05309521,127.73,127.7,0.05887754]
[1769207774843,0.05309521,127.73,127.7,14.45913333]
[1769207775037,8.80495402,127.76,127.71,7.34375579]
[1769207775637,8.80495402,127.75,127.7,7.11537754]
[1769207779141,8.80495402,127.75,127.7,14.4884888]
[1769207782954,8.80495402,127.74,127.7,0.05887754]
[1769207784049,15.85925402,127.74,127.7,0.05887754]
[1769207794646,9.18341263,127.73,127.68,7.0572]
[1769207795962,0.05339727,127.72,127.68,7.0572]
[1769207803366,9.2368099,127.72,127.67,8.40082962]
[1769207809871,16.2923099,127.72,127.67,8.40082962]
[1769207812875,18.29142625,127.72,127.67,8.40082962]
[1769207814775,9.18341263,127.71,127.67,8.40082962]
[1769207821080,11.18252898,127.71,127.66,7.0584]
[1769207821585,1.99911635,127.7,127.66,7.0584]
[1769207823283,0.06002553,127.69,127.66,7.0584]
[1769207823794,0.06002553,127.69,127.66,15.28839919]
[1769207834401,0.06002553,127.69,127.66,15.34688636]
[1769207840205,0.06002553,127.69,127.66,8.28848636]
[1769207880437,211.42718248,127.76,127.69,8.23337857]
[1769207880734,2.00062865,127.78,127.71,8.23337857]
[1769207880927,9.10889928,127.81,127.72,10.23400722]
[1769207881125,9.10889928,127.81,127.75,8.23337857]
[1769207881730,9.10889928,127.81,127.77,0.05224658]
[1769207882131,2.00062865,127.8,127.75,8.23337857]
[1769207882333,2.00062865,127.8,127.69,417.10050371]
[1769207882334,7.0521,127.78,127.71,2.00062865]
[1769207883033,7.0521,127.78,127.71,9.05632865]
[1769207883422,9.64289776,127.79,127.72,2.00062865]
[1769207884333,9.64289776,127.79,127.73,0.02501576]
[1769207885030,16.69449776,127.79,127.73,0.02501576]
[1769207888137,0.05423307,127.77,127.75,0.05005787]
[1769207899249,9.64289776,127.8,127.75,0.05005787]
[1769207900648,11.64071062,127.81,127.75,0.05005787]
[1769207900842,9.64289776,127.81,127.75,0.05005787]
[1769207904955,9.64289776,127.83,127.77,1.99781286]
[1769207905653,9.64289776,127.83,127.79,0.05365272]
[1769207908154,11.64071062,127.83,127.79,0.05365272]
[1769207908346,9.64289776,127.83,127.79,0.05365272]
[1769207909357,11.64071062,127.82,127.74,1.99781286]
[1769207909648,11.64071062,127.82,127.69,307.32550371]
[1769207909649,9.64289776,127.82,127.69,307.32550371]
[1769207910044,9.64289776,127.82,127.75,1.99781286]
[1769207910352,11.64071062,127.81,127.74,1.99781286]
[1769207910761,9.64289776,127.81,127.74,1.99781286]
[1769207912052,9.64289776,127.81,127.75,0.70192691]
[1769207928977,9.64289776,127.81,127.76,0.79869515]
[1769207933586,9.64289776,127.81,127.75,2.81928149]
[1769207939996,11.64071062,127.81,127.75,0.82146863]
[1769207942591,9.64289776,127.81,127.76,0.88067653]
[1769207943297,0.05620784,127.8,127.77,0.05164451]
[1769207947406,9.91395935,127.8,127.77,0.05164451]
[1769207951903,9.91395935,127.8,127.77,1.01104407]
[1769207951904,0.05620784,127.8,127.77,1.01104407]
[1769207952418,9.85775151,127.82,127.77,1.01104407]
[1769207953609,5.151e-05,127.82,127.77,1.01104407]
[1769207953907,5.151e-05,127.82,127.79,7.0513]
[1769207955098,1.286e-05,127.85,127.79,9.93118328]
[1769207955302,3.179e-05,127.87,127.81,119.60308328]
[1769207955705,9.8577833,127.87,127.81,119.60308328]
[1769207956307,9.8577833,127.87,127.83,7.0492]
[1769207956507,0.05040509,127.85,127.83,7.10201457]
[1769207956707,0.05040509,127.85,127.83,0.05281457]
[1769207957414,0.05040509,127.85,127.83,7.10211457]
[1769207959216,9.8577833,127.87,127.83,7.10211457]
[1769207962011,11.85305744,127.87,127.83,7.10211457]
[1769207962607,9.8577833,127.87,127.83,7.10211457]
[1769207971121,9.8577833,127.87,127.83,17.03329785]
[1769207971309,9.8577833,127.87,127.83,9.09738871]
[1769207971714,9.8577833,127.87,127.83,7.10211457]
[1769207975224,9.8577833,127.87,127.83,0.05281457]
[1769207983029,9.8577833,127.87,127.81,7.0503]
[1769207983225,9.47858432,127.86,127.8,10.20078628]
[1769207984938,9.47858432,127.86,127.81,7.0504]
[1769207991640,16.52658432,127.86,127.8,17.25178628]
[1769207991845,9.47858432,127.85,127.8,17.25178628]
[1769207994242,9.47858432,127.85,127.81,0.05516656]
[1769207995045,9.47858432,127.77,127.7,10.20078628]
[1769207995242,9.47858432,127.81,127.76,12.19606042]
[1769207995442,9.47858432,127.81,127.78,1.99527414]
[1769207999944,9.47858432,127.81,127.76,10.20078628]
[1769208000147,7.0511,127.8,127.76,1.99527414]
[1769208000346,9.47858432,127.81,127.74,12.19606042]
[1769208001047,9.47858432,127.79,127.74,10.20078628]
[1769208001449,9.47858432,127.79,127.68,405.6653]
[1769208001450,16.15767018,127.78,127.72,10.20078628]
[1769208001649,9.10557018,127.78,127.71,1.99527414]
[1769208001847,11.10084432,127.77,127.7,10.20078628]
[1769208002043,109.6856,127.8,127.68,10.20078628]
[1769208002044,9.10557018,127.74,127.68,10.20078628]
[1769208002444,9.10557018,127.74,127.66,10.6403815]
[1769208002655,6.75002157,127.72,127.66,8.64510736]
[1769208003357,13.80572157,127.72,127.66,8.64510736]
[1769208003656,0.05292694,127.7,127.68,0.05340732]
[1769208004655,6.75002157,127.72,127.68,0.05340732]
[1769208009263,123.7798,127.81,127.68,0.05340732]
[1769208009264,9.04897414,127.76,127.69,1.99527414]
[1769208010652,7.0537,127.76,127.69,6.97095963]
[1769208011362,7.0523,127.78,127.73,1.99527414]
[1769208013361,9.04667414,127.8,127.73,1.99527414]
[1769208014154,9.04667414,127.8,127.73,6.97095963]
[1769208015358,9.04667414,127.8,127.73,14.02565963]
[1769208016659,9.04567414,127.82,127.74,12.02988549]
[1769208016959,1.99527414,127.82,127.74,12.02988549]
[1769208017357,7.0505,127.81,127.74,12.02988549]
[1769208019166,1.99527414,127.82,127.74,12.02988549]
[1769208019965,1.99527414,127.82,127.75,4.97568549]
[1769208020863,9.04724473,127.82,127.75,4.97568549]
[1769208029574,1.99734473,127.82,127.75,4.97568549]
[1769208030785,1.99734473,127.8,127.75,4.97568549]
[1769208030986,9.04844473,127.8,127.75,4.97568549]
[1769208036796,7.0516,127.79,127.75,4.97568549]
[1769208037184,7.0516,127.79,127.73,4.97568549]
[1769208037397,9.04894473,127.79,127.73,4.97568549]
[1769208037792,7.0521,127.78,127.73,4.97568549]
[1769208038194,1.99734473,127.77,127.73,4.97568549]
[1769208040294,1.99734473,127.77,127.74,0.05016136]
[1769208042000,7.0521,127.78,127.74,0.05016136]
[1769208042200,9.04944473,127.78,127.74,0.05016136]
[1769208050306,7.0527,127.77,127.74,0.05016136]
[1769208054009,7.0527,127.77,127.7,12.03218549]
[1769208054405,1.99734473,127.76,127.71,4.97568549]
[1769208055106,1.99734473,127.76,127.72,0.05806522]
[1769208056503,9.05074473,127.76,127.72,0.05806522]
[1769208056710,1.99734473,127.76,127.72,0.05806522]
[1769208057605,7.0544,127.74,127.72,0.01439776]
[1769208057809,9.05174473,127.74,127.69,4.97568549]
[1769208060209,7.0549,127.73,127.69,4.97568549]
[1769208060414,1.99734473,127.72,127.7,0.056288]
[1769208060716,7.11400637,127.73,127.7,0.056288]
[1769208061100,0.05910637,127.73,127.7,0.056288]
[1769208062101,1.99734473,127.77,127.71,4.97568549]
[1769208063110,7.0537,127.76,127.71,4.97568549]
[1769208063312,7.0537,127.76,127.73,0.04959811]
[1769208078724,9.04954473,127.78,127.73,0.04959811]
[1769208079120,1.99734473,127.78,127.72,4.97568549]
[1769208079326,1.99734473,127.78,127.74,0.04948702]
[1769208079929,7.0527,127.77,127.74,0.04948702]
[1769208084518,7.0532,127.76,127.72,4.97568549]
[1769208085727,7.0532,127.76,127.73,0.04944854]
[1769208091231,0.0523493,127.77,127.73,0.04944854]
[1769208091733,0.0523493,127.77,127.73,7.10424854]
[1769208099842,0.0523493,127.77,127.74,4.97568549]
[1769208100040,9.05008721,127.8,127.75,4.97568549]
[1769208100341,7.0514,127.8,127.75,4.97568549]
[1769208101435,0.0573601,127.79,127.76,0.05028751]
[1769208104754,0.0573601,127.79,127.76,5.025973]
[1769208106752,1.99868721,127.83,127.77,4.94700544]
[1769208107844,1.99868721,127.84,127.77,4.94700544]
[1769208108049,7.0494,127.83,127.79,0.05693522]
[1769208108756,1.99868721,127.84,127.79,0.05693522]
[1769208109160,9.04728721,127.85,127.79,0.05693522]
[1769208109553,7.0486,127.85,127.79,5.00394066]
[1769208110160,9.04728721,127.85,127.79,5.00394066]
[1769208110864,7.0486,127.85,127.79,5.00394066]
[1769208111958,9.04638721,127.86,127.8,4.94700544]
[1769208112759,9.04638721,127.86,127.82,0.05924585]
[1769208114768,7.0477,127.86,127.82,0.05924585]
[1769208118861,1.99868721,127.85,127.79,4.94700544]
[1769208119052,1.99868721,127.83,127.79,4.94700544]
[1769208119960,9.04828721,127.83,127.79,4.94700544]
[1769208120163,1.99868721,127.82,127.8,0.05170418]
[1769208120354,1.99868721,127.82,127.77,11.99950544]
[1769208120556,2.05188723,127.82,127.77,11.99950544]
[1769208121454,2.05188723,127.82,127.78,0.0518318]
[1769208122859,1.99868721,127.81,127.73,1.99868721]
[1769208123365,1.99868721,127.79,127.71,1.99868721]
[1769208123866,7.0516,127.79,127.73,7.0548]
[1769208124069,9.05028721,127.79,127.73,7.0548]
[1769208124270,0.05026853,127.76,127.73,7.0548]
[1769208124457,9.05028721,127.79,127.73,7.0548]
[1769208125057,9.05028721,127.79,127.74,4.17773561]
[1769208133370,1.99868721,127.79,127.74,7.0543]
[1769208133573,109.6544,127.84,127.69,111.77468721]
[1769208133574,2.84425081,127.78,127.69,111.77468721]
[1769208133765,2.84425081,127.78,127.69,1.99868721]
[1769208134168,2.84425081,127.78,127.71,1.99868721]
[1769208134371,7.0527,127.77,127.71,1.99868721]
[1769208135278,7.0532,127.76,127.69,9.05568721]
[1769208135478,7.0532,127.76,127.7,3.38925167]
[1769208137581,7.0539,127.75,127.7,3.38925167]
[1769208141181,2.84425081,127.77,127.7,3.38925167]
[1769208141376,4.84293802,127.77,127.7,3.38925167]
[1769208142879,7.0532,127.76,127.7,5.38789163]
[1769208143784,2.84425081,127.74,127.67,301.65455335]
[1769208143982,2.84425081,127.72,127.67,3.38925167]
[1769208144192,2.84425081,127.72,127.65,5.38789163]
[1769208144377,2.84425081,127.72,127.65,3.38925167]
[1769208144580,9.89995081,127.72,127.65,3.38925167]
[1769208144783,2.84425081,127.72,127.65,3.38925167]
[1769208145685,0.05159332,127.7,127.67,0.05512768]
[1769208149382,2.84328904,127.7,127.67,0.05512768]
[1769208149578,2.84328904,127.7,127.61,109.8401]
[1769208149579,1.99863996,127.66,127.61,3.38925167]
[1769208149875,4.735208,127.66,127.61,3.38925167]
[1769208150079,2.73656804,127.66,127.61,3.38925167]
[1769208150678,2.73656804,127.66,127.62,0.05072248]
[1769208150982,0.06031138,127.65,127.62,0.05072248]
[1769208202740,0.06031138,127.65,127.62,7.11162248]
[1769208205738,2.73656804,127.66,127.62,7.11162248]
[1769208207145,0.05930062,127.65,127.62,7.11162248]
[1769208217751,7.0572,127.69,127.64,3.22040175]
[1769208217954,2.7366534,127.7,127.64,3.22040175]
[1769208219058,9.7932534,127.7,127.64,3.22040175]
[1769208219948,9.7932534,127.7,127.66,0.05578268]
[1769208220259,0.05720549,127.69,127.66,0.05578268]
[1769208225756,0.05720549,127.69,127.66,3.27618443]
[1769208225961,2.7366534,127.72,127.66,3.27618443]
[1769208226962,2.7366534,127.72,127.67,10.27850175]
[1769208227761,132.84477773,127.76,127.7,3.22040175]
[1769208227762,2.7366534,127.76,127.7,3.22040175]
[1769208228461,2.7366534,127.76,127.72,0.05339266]
[1769208229056,4.7383813,127.75,127.72,0.05339266]
[1769208229267,2.7366534,127.75,127.7,3.22040175]
[1769208229969,9.7905534,127.75,127.7,3.22040175]
[1769208230661,2.7366534,127.77,127.7,3.22040175]
[1769208231270,0.04946411,127.75,127.72,0.05958826]
[1769208231455,300.49284087,127.78,127.72,3.27999001]
[1769208231662,298.49111297,127.78,127.72,3.27999001]
[1769208232565,298.49111297,127.78,127.74,3.22040175]
[1769208232768,0.05413734,127.76,127.74,3.22040175]
[1769208232964,298.49111297,127.78,127.74,3.22040175]
[1769208233165,2.7366534,127.8,127.74,3.26994312]
[1769208233567,2.7366534,127.8,127.75,3.22040175]
[1769208233771,2.7366534,127.82,127.76,3.22040175]
[1769208234167,2.7366534,127.82,127.77,3.22040175]
[1769208234364,2.7366534,127.82,127.78,0.05052607]
[1769208237267,9.7866534,127.82,127.78,0.05052607]
[1769208237468,0.06001195,127.81,127.78,0.05052607]
[1769208239371,2.79666535,127.81,127.75,3.22040175]
[1769208239672,2.7366534,127.81,127.75,3.22040175]
[1769208239862,9.7874534,127.81,127.75,3.22040175]
[1769208240572,9.7874534,127.81,127.77,0.05314388]
[1769208240766,0.05945683,127.79,127.77,0.05314388]
[1769208244872,0.05945683,127.79,127.76,3.35751037]
[1769208245171,0.05945683,127.79,127.74,3.35751037]
[1769208245172,2.44609336,127.79,127.74,3.35751037]
[1769208245567,2.38663653,127.79,127.74,3.35751037]
[1769208246968,7.0528,127.77,127.74,3.35751037]
[1769208247163,2.38663653,127.74,127.68,3.35751037]
[1769208247367,2.73217788,127.72,127.66,3.26535284]
[1769208248175,0.0504573,127.7,127.68,0.05569738]
[1769208248770,0.0504573,127.7,127.68,0.02723121]
[1769208248976,7.1072573,127.7,127.68,0.02723121]
[1769208258481,9.83943518,127.7,127.68,0.02723121]
[1769208260086,11.84116308,127.7,127.64,3.26535284]
[1769208262692,11.84116308,127.7,127.66,0.05995854]
[1769208262891,7.0571,127.69,127.66,0.05995854]
[1769208272099,9.78927788,127.69,127.66,0.05995854]
[1769208273197,7.058,127.68,127.66,0.05995854]
[1769208273404,11.44887837,127.68,127.62,3.17355759]
[1769208274703,0.05740683,127.66,127.62,3.17355759]
[1769208277904,7.11650683,127.66,127.62,3.17355759]
[1769208279604,7.11650683,127.66,127.63,0.05008421]
[1769208281002,7.0593,127.65,127.63,0.05008421]
[1769208281203,2.38998595,127.65,127.6,3.17355759]
[1769208282109,7.0598,127.64,127.6,3.17355759]
[1769208282805,0.05360492,127.63,127.6,3.17355759]
[1769208284607,0.05360492,127.63,127.6,3.23213765]
[1769208286506,7.11410492,127.63,127.6,3.23213765]
[1769208288211,7.11410492,127.63,127.6,0.05858006]
[1769208289415,7.061,127.62,127.6,0.05858006]
[1769208297712,9.45400666,127.63,127.6,0.05858006]
[1769208337051,2.68421773,127.62,127.6,0.05858006]
[1769208369685,2.68421773,127.62,127.58,7.063]
[1769208374499,0.05360492,127.63,127.58,10.47353776]
[1769208374899,2.68305496,127.63,127.58,10.47353776]
[1769208376001,2.68305496,127.63,127.59,0.05328329]
[1769208377594,2.62945004,127.7,127.63,3.41053776]
[1769208377800,2.62945004,127.7,127.64,2.0027952]
[1769208377994,2.62945004,127.69,127.63,3.41053776]
[1769208378801,0.05860109,127.67,127.63,3.41053776]
[1769208379001,2.68805113,127.67,127.62,2.0027952]
[1769208379198,2.68805113,127.67,127.61,3.41053776]
[1769208379398,2.62945004,127.67,127.61,3.41053776]
[1769208379697,0.05112014,127.65,127.61,3.41053776]
[1769208386004,2.62945004,127.67,127.62,5.41220217]
[1769208386199,2.62945004,127.67,127.63,3.41053776]
[1769208386397,2.62945004,127.69,127.63,3.41053776]
[1769208387297,0.05591109,127.67,127.63,3.41053776]
[1769208410529,0.05591109,127.67,127.64,3.26616701]
[1769208411129,2.62703391,127.68,127.64,3.26616701]
[1769208412432,0.05025177,127.67,127.64,3.26616701]
[1769208412629,0.05025177,127.67,127.64,0.0524249]
[1769208436559,0.05025177,127.67,127.64,3.28394888]
[1769208436855,4.29463087,127.68,127.64,3.28394888]
[1769208438161,0.05116442,127.67,127.64,3.28394888]
[1769208457065,4.29463087,127.68,127.64,3.28394888]
[1769208458363,0.05156231,127.67,127.64,3.28394888]
[1769208459466,7.0571,127.69,127.64,3.28394888]
[1769208473880,0.05603895,127.68,127.64,3.28394888]
[1769208481578,7.0565,127.71,127.64,3.28394888]
[1769208481982,7.0565,127.71,127.64,3.23152398]
[1769208482989,7.0565,127.71,127.66,0.05453479]
[1769208483183,7.0565,127.71,127.67,3.27117004]
[1769208483390,9.78753603,127.71,127.66,0.05453479]
[1769208483889,9.78753603,127.71,127.66,3.32570483]
[1769208492702,0.05496691,127.7,127.66,3.32570483]
[1769208524526,7.11156691,127.7,127.66,3.32570483]
[1769208548638,0.05496691,127.7,127.66,3.32570483]
[1769208566853,7.056,127.71,127.66,3.32570483]
[1769208581666,9.83935209,127.72,127.66,3.32570483]
[1769208587968,11.83933283,127.72,127.66,3.32570483]
[1769208589671,11.83933283,127.72,127.66,10.38440483]
[1769208590662,9.83865209,127.74,127.68,3.20419921]
[1769208591070,2.78395209,127.73,127.68,3.20419921]
[1769208591271,2.78395209,127.73,127.7,0.05774046]
[1769208592769,9.83925209,127.73,127.7,0.05774046]
[1769208597977,9.88901056,127.73,127.7,0.05774046]
[1769208600478,2.78395209,127.72,127.66,12.26237995]
[1769208601782,2.78395209,127.72,127.68,0.05685064]
[1769208643712,0.05409751,127.71,127.68,0.05685064]
[1769208658310,2.84136914,127.71,127.68,0.05685064]
[1769208658518,2.84136914,127.71,127.65,212.66846354]
[1769208659713,2.84136914,127.71,127.67,0.05462688]
[1769208659914,9.89736914,127.71,127.67,0.05462688]
[1769208660418,2.78727163,127.7,127.67,0.05462688]
[1769208663718,2.78727163,127.7,127.67,0.01058016]
[1769208684435,2.78727163,127.7,127.63,3.57824393]
[1769208686038,3.15112214,127.68,127.63,3.57824393]
[1769208690847,3.15112214,127.68,127.63,5.57900956]
[1769208692345,3.15112214,127.68,127.63,12.63940956]
[1769208693148,3.15112214,127.68,127.63,5.57900956]
[1769208693852,3.15112214,127.68,127.63,3.57824393]
[1769208694649,7.0582,127.67,127.63,3.57824393]
[1769208694848,9.89853471,127.67,127.64,0.04951194]
[1769208702157,2.84033471,127.67,127.64,0.04951194]
[1769208707754,9.89853471,127.67,127.61,5.51152878]
[1769208707957,2.78930168,127.66,127.61,5.51152878]
[1769208715365,2.78930168,127.66,127.61,12.57302878]
[1769208727082,2.78930168,127.66,127.61,10.57226315]
[1769208728685,2.78930168,127.66,127.59,12.26376554]
[1769208729072,2.78930168,127.66,127.61,0.05597546]
[1769208729270,0.05903375,127.64,127.61,0.05597546]
[1769208729881,2.84834992,127.64,127.61,0.05597546]
[1769208730079,2.84834992,127.64,127.57,12.26486554]
[1769208733187,2.84834992,127.64,127.58,3.20089991]
[1769208735190,9.90834992,127.64,127.58,3.20089991]
[1769208736889,2.78931617,127.63,127.58,3.20089991]
[1769208743496,2.78931617,127.63,127.59,0.05396038]
[1769208753213,9.85001617,127.63,127.59,0.05396038]
[1769208753417,2.79316395,127.62,127.59,0.05396038]
[1769208757316,9.85416395,127.62,127.59,0.05396038]
[1769208761024,2.79316395,127.61,127.59,0.05396038]
[1769208761523,2.85046012,127.61,127.57,3.25607971]
[1769208765727,2.85046012,127.61,127.55,218.25103376]
[1769208767328,2.85046012,127.61,127.56,3.25607971]
[1769208772731,2.85046012,127.61,127.54,3.25607971]
[1769208772928,2.85046012,127.61,127.55,2.00259991]
[1769208773232,0.05673083,127.59,127.55,2.00259991]
[1769208773935,0.05673083,127.59,127.56,0.04948181]
[1769208774639,2.84989478,127.59,127.56,0.04948181]
[1769208775936,9.91259478,127.59,127.56,0.04948181]
[1769208776228,9.91259478,127.59,127.54,3.25607971]
[1769208776229,2.79316395,127.58,127.54,3.25607971]
[1769208776435,2.79316395,127.58,127.53,2.00259991]
[1769208776826,2.79316395,127.57,127.52,5.25867962]
[1769208777425,2.79316395,127.57,127.52,2.00259991]
[1769208777626,0.05406589,127.56,127.51,3.25607971]
[1769208777938,2.84722984,127.56,127.51,3.25607971]
[1769208783846,2.79086789,127.55,127.5,2.00259991]
[1769208784435,2.79086789,127.55,127.5,5.23255214]
[1769208785037,2.79086789,127.55,127.5,12.29995214]
[1769208786339,2.79086789,127.55,127.5,10.29735223]
[1769208786645,7.11836589,127.56,127.51,3.22995223]
[1769208786946,9.1209658,127.56,127.51,3.22995223]
[1769208787147,11.91183369,127.56,127.51,3.22995223]
[1769208787440,9.51243176,127.55,127.51,3.22995223]
[1769208787642,9.51243176,127.55,127.49,3.18949382]
[1769208787842,2.44753176,127.54,127.52,0.05329665]
[1769208788243,2.50188087,127.54,127.52,0.05329665]
[1769208788649,9.56728087,127.54,127.52,0.05329665]
[1769208788850,9.56728087,127.54,127.49,3.18949382]
[1769208789849,2.39423511,127.52,127.45,3.18949382]
[1769208790146,4.39683502,127.52,127.45,3.18949382]
[1769208790341,0.0561011,127.5,127.45,3.18949382]
[1769208790547,0.0561011,127.5,127.47,0.05637861]
[1769208793152,7.1237011,127.5,127.47,0.05637861]
[1769208793348,9.51793621,127.5,127.47,0.05637861]
[1769208793544,2.45033621,127.5,127.47,0.05637861]
[1769208795050,9.46243511,127.49,127.47,0.05637861]
[1769208799953,9.46243511,127.49,127.44,3.18949382]
[1769208800151,2.3378565,127.48,127.44,3.18949382]
[1769208800454,2.3378565,127.5,127.45,5.19209373]
[1769208801354,0.05750071,127.49,127.45,5.19209373]
[1769208810850,0.05750071,127.49,127.45,3.18949382]
[1769208812749,109.9101,127.54,127.45,3.18949382]
[1769208812750,123.9854,127.6,127.48,2.0065929]
[1769208812951,2.73907222,127.56,127.5,2.0065929]
[1769208813159,2.73907222,127.58,127.51,3.09873302]
[1769208813856,0.0547357,127.56,127.51,3.09873302]
[1769208814960,0.0547357,127.56,127.51,10.16573302]
[1769208817367,0.0547357,127.56,127.51,3.09873302]
[1769208821359,2.73907222,127.55,127.48,3.09873302]
[1769208821769,0.05219456,127.53,127.48,3.09873302]
[1769208827767,0.05219456,127.53,127.49,3.15447322]
[1769208839890,7.11819456,127.53,127.49,3.15447322]
[1769208845788,0.05219456,127.53,127.49,3.15447322]
[1769208857486,0.05219456,127.53,127.49,10.22257322]
[1769208857687,2.0065929,127.58,127.5,3.26736337]
[1769208857887,2.0065929,127.58,127.52,3.26736337]
[1769208858587,7.0642,127.57,127.52,3.26736337]